bitfinex-derivatives/quotes_ETHF0:USTF0_20251028
["timestamp","ask_amount","ask_price","bid_price","bid_amount"]
[1761632460623,0.7802,4085.7,4085.6,2.08835913]
[1761632461423,0.7802,4085.7,4085.6,0.7687]
[1761632462024,41.5802,4085.7,4085.6,0.7687]
[1761632465527,0.7802,4085.7,4085.6,0.7687]
[1761632465720,0.00281845,4085.9,4085.8,0.7485]
[1761632465919,0.00281845,4085.9,4085.8,2.01448755]
[1761632466325,0.54861845,4085.9,4085.8,2.01448755]
[1761632466628,0.77071845,4085.9,4085.8,0.2154]
[1761632466932,0.7679,4085.7,4085.6,0.5355]
[1761632467431,0.7679,4085.7,4085.6,0.7485]
[1761632470932,0.5897,4085.5,4085.4,1.81058755]
[1761632471133,0.9344,4085.5,4085.4,1.81058755]
[1761632471835,0.9344,4085.5,4085.2,1.76079623]
[1761632472030,0.3447,4085.4,4085.0,3.57138378]
[1761632472236,0.7951,4085.1,4085.0,3.46598378]
[1761632472737,0.7951,4085.1,4085.0,2.51519623]
[1761632473032,0.7951,4085.1,4085.0,0.7544]
[1761632473434,0.7951,4085.1,4085.0,0.2294]
[1761632473932,0.4504,4084.8,4084.7,3.02678378]
[1761632474132,0.7951,4084.8,4084.7,2.02038755]
[1761632475033,40.8,4084.9,4084.8,0.3152]
[1761632475227,40.8,4084.9,4084.8,0.7544]
[1761632475835,40.8,4084.9,4084.8,1.19508]
[1761632476025,0.7951,4085.4,4084.8,0.87988]
[1761632476230,0.4504,4085.4,4085.3,1.63474608]
[1761632476629,41.5951,4085.4,4085.3,1.63474608]
[1761632478034,0.5765,4085.8,4085.7,0.2294]
[1761632478235,0.7951,4085.8,4085.7,0.5446]
[1761632478437,41.5951,4085.8,4085.7,0.5446]
[1761632479041,41.5951,4085.8,4085.7,0.2294]
[1761632479236,0.7951,4085.6,4085.3,0.88034608]
[1761632479436,0.9344,4085.5,4085.4,0.5446]
[1761632479636,0.9344,4085.5,4085.4,0.2294]
[1761632480037,0.9344,4085.5,4085.4,0.5446]
[1761632482142,0.9344,4085.5,4085.4,0.7544]
[1761632482537,0.9344,4085.5,4085.4,0.2294]
[1761632482842,0.7951,4085.4,4085.3,1.63474608]
[1761632483032,0.7951,4085.4,4085.3,0.7544]
[1761632485946,0.7951,4085.4,4085.3,0.2294]
[1761632486143,0.7951,4085.3,4085.2,0.88034608]
[1761632488242,0.4504,4084.7,4084.5,0.88034608]
[1761632488444,0.484,4084.5,4084.4,0.88034608]
[1761632488746,0.7951,4084.4,4084.3,1.42763586]
[1761632490246,0.7951,4084.4,4084.3,0.54728978]
[1761632491045,0.7951,4084.4,4084.3,0.23208978]
[1761632492541,0.7951,4084.4,4084.3,0.54728978]
[1761632494549,0.7951,4084.4,4084.3,0.00268978]
[1761632507465,0.7951,4084.4,4084.3,0.76288978]
[1761632511166,0.2318,4084.4,4084.3,0.76288978]
[1761632511369,0.5637,4084.4,4084.3,0.76288978]
[1761632512460,0.5637,4084.4,4084.3,1.64323586]
[1761632513965,40.8,4084.5,4084.3,0.76288978]
[1761632514270,40.8,4084.5,4084.4,1.63987962]
[1761632514671,41.1319,4084.5,4084.4,1.63987962]
[1761632515271,41.1319,4084.5,4084.4,0.7602]
[1761632515870,40.8,4084.5,4084.4,0.7602]
[1761632516171,40.8,4084.5,4084.4,2.08090959]
[1761632516574,0.546,4084.7,4084.6,0.7602]
[1761632516870,0.4237,4085.4,4085.1,0.5356]
[1761632517070,40.8,4085.3,4085.2,0.5356]
[1761632517270,41.1319,4085.3,4085.2,0.5356]
[1761632517675,41.1319,4085.3,4085.2,0.2203]
[1761632517868,0.7556,4085.1,4085.0,1.10083394]
[1761632518067,0.7556,4085.1,4085.0,1.41613394]
[1761632520668,0.4583,4085.0,4084.9,0.88053394]
[1761632520870,0.5501,4085.0,4084.7,1.32070959]
[1761632521169,0.7556,4084.8,4084.7,0.2203]
[1761632522373,0.7556,4084.8,4084.7,0.5356]
[1761632522775,0.4583,4084.5,4084.0,0.88032516]
[1761632523071,0.7556,4084.1,4084.0,0.2203]
[1761632523376,41.5556,4084.1,4084.0,0.5356]
[1761632523968,41.5556,4084.1,4084.0,0.00230482]
[1761632526877,41.5556,4084.1,4084.0,0.53160482]
[1761632528372,41.5556,4084.1,4084.0,0.21570482]
[1761632530073,41.5556,4084.1,4084.0,0.00230482]
[1761632532282,0.7806,4083.2,4083.1,0.7443]
[1761632533181,0.7806,4083.2,4083.1,0.74714504]
[1761632535380,0.7806,4083.2,4083.1,0.21864504]
[1761632535571,1.83625322,4083.2,4083.1,0.00284504]
[1761632536079,41.5806,4083.2,4083.1,0.53324504]
[1761632536382,40.8,4083.2,4083.1,1.80279826]
[1761632536578,0.5573,4083.9,4083.8,0.4297]
[1761632536774,0.7806,4083.9,4083.8,0.7443]
[1761632537180,0.1264,4084.5,4084.1,0.4297]
[1761632537181,0.5573,4084.2,4084.1,0.4297]
[1761632537382,0.5573,4084.2,4084.1,0.7443]
[1761632537879,0.2233,4083.4,4083.3,0.7443]
[1761632538183,0.7806,4083.9,4083.8,0.7443]
[1761632539777,0.7806,4083.9,4083.8,0.2158]
[1761632540578,0.3329,4083.8,4083.6,0.3146]
[1761632541084,0.7806,4083.7,4083.6,0.7443]
[1761632542584,0.7806,4083.7,4083.1,0.00284504]
[1761632542786,0.7806,4083.4,4083.3,0.7443]
[1761632548487,0.4477,4083.4,4083.1,1.53629895]
[1761632548688,0.3329,4083.3,4083.1,1.53629895]
[1761632548890,0.7806,4083.2,4083.1,1.85089895]
[1761632549090,41.5806,4083.2,4083.1,1.85089895]
[1761632549288,41.5806,4083.2,4083.1,0.53324504]
[1761632550278,41.5806,4083.2,4083.1,0.00284504]
[1761632554989,41.2477,4083.2,4082.5,0.88040169]
[1761632555183,0.7773,4082.1,4082.0,0.4335]
[1761632555387,0.7773,4082.1,4082.0,0.2154]
[1761632555885,41.5773,4082.1,4082.0,0.2154]
[1761632556091,41.57978005,4082.1,4082.0,0.00301725]
[1761632570207,0.7773,4081.0,4080.9,0.5751069]
[1761632570396,0.7773,4081.0,4080.9,0.7932069]
[1761632571202,0.7773,4081.0,4080.9,0.7957627]
[1761632571400,0.215,4081.4,4081.3,0.7691]
[1761632571703,0.7773,4081.6,4081.5,0.7691]
[1761632572096,41.5773,4081.6,4081.5,0.9054]
[1761632572403,41.015,4081.6,4081.5,0.9054]
[1761632572591,41.3627,4081.6,4081.5,0.9054]
[1761632576105,41.015,4081.6,4081.5,0.9054]
[1761632576612,0.5627,4081.6,4081.5,0.9054]
[1761632577799,0.215,4081.6,4081.5,0.9054]
[1761632578001,41.1477,4081.9,4081.6,0.3356]
[1761632578203,40.8,4081.9,4081.8,0.7691]
[1761632578707,41.1477,4081.9,4081.8,0.7691]
[1761632580005,40.8,4081.9,4081.8,0.7691]
[1761632580206,0.00248005,4082.1,4082.0,0.9054]
[1761632580505,0.00248005,4082.1,4082.0,2.17378301]
[1761632582904,0.77978005,4082.1,4082.0,0.7691]
[1761632583506,0.77978005,4082.1,4082.0,0.9054]
[1761632584304,0.77978005,4082.1,4082.0,0.7691]
[1761632584698,0.77978005,4082.1,4082.0,0.551]
[1761632584904,0.77978005,4082.1,4082.0,1.0957805]
[1761632585104,0.77978005,4082.1,4082.0,0.2154]
[1761632585500,0.77978005,4082.1,4081.6,0.88051002]
[1761632585704,0.4575,4081.7,4081.5,0.88051002]
[1761632585906,0.7972,4081.6,4081.5,0.88051002]
[1761632586611,0.9295,4081.5,4081.4,0.88051002]
[1761632587713,0.7972,4081.4,4081.3,0.88051002]
[1761632588514,0.3397,4081.3,4081.0,0.88051002]
[1761632588706,0.7972,4081.1,4081.0,0.88051002]
[1761632589013,0.9295,4081.0,4080.9,0.90717272]
[1761632590108,0.9295,4081.0,4080.9,1.12457272]
[1761632590310,0.9295,4081.0,4080.9,1.67187272]
[1761632590612,0.2231,4081.4,4081.3,0.7827]
[1761632590915,0.2231,4081.4,4081.3,1.66300735]
[1761632591112,0.5641,4081.4,4081.3,1.66300735]
[1761632594108,0.2231,4081.4,4081.3,1.66300735]
[1761632594311,40.8,4081.6,4081.5,0.1318]
[1761632594615,40.8,4081.6,4081.5,0.9145]
[1761632594815,0.5641,4081.6,4081.5,0.9145]
[1761632595417,41.3641,4081.6,4081.5,0.9145]
[1761632595808,0.1323,4082.0,4081.5,0.9145]
[1761632595809,0.4733,4082.0,4081.5,0.9145]
[1761632596013,0.5641,4082.0,4081.9,0.7827]
[1761632596317,41.5894,4082.0,4081.9,0.7827]
[1761632597914,41.7222,4082.0,4081.9,0.5712]
[1761632598720,41.7222,4082.0,4081.9,0.7827]
[1761632599518,41.5894,4082.0,4081.9,0.7827]
[1761632599921,41.2484,4082.0,4081.9,0.7827]
[1761632600721,41.5894,4082.0,4081.9,0.7827]
[1761632600921,0.2231,4082.0,4081.9,0.7827]
[1761632601121,0.79188005,4082.1,4082.0,0.7827]
[1761632603618,0.7894,4081.9,4081.8,0.88030735]
[1761632603820,0.7894,4081.9,4081.8,1.10860735]
[1761632604127,0.7894,4081.9,4081.8,1.45150735]
[1761632604326,0.7894,4081.9,4081.8,1.10860735]
[1761632604728,0.7894,4081.9,4081.8,0.88030735]
[1761632605223,0.7894,4081.9,4081.8,0.2283]
[1761632605723,0.7894,4081.9,4081.8,0.5712]
[1761632606120,0.341,4081.8,4081.7,0.88030735]
[1761632606424,0.7894,4081.7,4081.6,0.88030735]
[1761632606632,0.5641,4081.7,4081.6,0.7827]
[1761632606821,0.7894,4081.7,4081.6,0.7827]
[1761632607529,0.7894,4081.7,4081.5,1.32046102]
[1761632607718,0.9222,4081.5,4081.4,1.89166102]
[1761632608324,0.9222,4081.5,4081.4,2.10316102]
[1761632608627,0.9222,4081.5,4081.4,1.66293864]
[1761632612634,0.9222,4081.5,4081.4,0.88023864]
[1761632612934,0.7894,4081.4,4081.3,0.7827]
[1761632614631,0.7894,4081.4,4081.3,0.69193759]
[1761632614828,0.4484,4081.4,4081.3,0.88074587]
[1761632615025,0.7889,4081.4,4081.3,0.88074587]
[1761632615425,0.7889,4081.4,4081.3,0.2143]
[1761632615626,0.7889,4081.4,4081.3,0.7625]
[1761632616835,0.3405,4081.6,4081.4,0.3247]
[1761632617134,0.3405,4081.6,4081.5,0.7625]
[1761632617135,0.5591,4081.6,4081.5,0.7625]
[1761632619337,0.7837,4081.6,4081.5,1.64328012]
[1761632621835,0.7837,4081.6,4081.5,1.41978012]
[1761632623535,0.7837,4081.6,4081.5,1.4201765]
[1761632623728,0.7837,4081.6,4081.5,0.539]
[1761632624132,0.7837,4081.6,4081.5,0.7625]
[1761632624336,0.7837,4081.6,4081.5,1.64367651]
[1761632631345,0.7837,4081.6,4081.5,0.7625]
[1761632633239,0.5591,4081.6,4081.5,0.7625]
[1761632633447,0.5591,4081.6,4081.5,0.898]
[1761632635346,0.5591,4081.6,4081.5,2.21976476]
[1761632636148,0.5591,4081.6,4081.5,0.898]
[1761632636654,0.5591,4081.6,4081.5,0.7625]
[1761632636947,0.7837,4081.6,4081.5,0.7625]
[1761632637345,0.7837,4081.6,4081.5,2.08426476]
[1761632639845,0.7837,4081.6,4081.5,1.32176476]
[1761632640443,0.7837,4081.6,4081.5,1.86076476]
[1761632640946,0.7837,4081.6,4081.5,2.08426476]
[1761632641147,0.4432,4081.9,4081.8,0.7625]
[1761632641342,0.4432,4081.9,4081.8,1.64470035]
[1761632641745,0.7837,4081.9,4081.8,0.7625]
[1761632642247,0.7837,4081.9,4081.8,1.64470035]
[1761632644244,0.7837,4081.9,4081.8,0.7625]
[1761632645848,0.7837,4081.9,4081.8,0.4378]
[1761632646050,0.7837,4081.9,4081.8,0.2143]
[1761632647447,0.7837,4081.9,4081.8,1.41600035]
[1761632648652,0.7837,4081.9,4081.8,1.63090035]
[1761632648848,0.5352,4082.0,4081.9,0.7667]
[1761632649449,40.80248005,4082.1,4082.0,0.4499]
[1761632649640,0.27356258,4082.6,4082.5,0.5776]
[1761632649839,0.27356258,4082.6,4082.5,0.8971]
[1761632650045,41.07356258,4082.6,4082.5,2.22024208]
[1761632650251,41.07356258,4082.6,4082.5,0.8971]
[1761632650548,40.8,4082.6,4082.5,1.77812577]
[1761632650746,0.4311,4082.5,4082.4,0.88102577]
[1761632650941,1.61681759,4082.5,4082.1,0.88102577]
[1761632651146,1.48811759,4082.2,4082.1,0.88102577]
[1761632651647,1.80791759,4082.2,4082.1,0.88102577]
[1761632652645,1.48811759,4082.2,4082.0,0.88102577]
[1761632652846,0.7509,4082.1,4082.0,0.88102577]
[1761632653952,1.80791759,4082.1,4082.0,0.7667]
[1761632656851,0.53752514,4082.6,4082.5,0.3627]
[1761632657054,0.53752514,4082.6,4082.5,0.8971]
[1761632657352,0.53752514,4082.6,4082.5,0.7667]
[1761632657353,41.55322514,4082.6,4082.5,0.7667]
[1761632657851,41.55322514,4082.6,4082.5,1.77792757]
[1761632658047,41.01772514,4082.6,4082.5,1.77792757]
[1761632658247,41.33752514,4082.6,4082.5,0.8971]
[1761632659249,41.33752514,4082.6,4082.3,0.88082757]
[1761632659548,1.80791759,4082.4,4082.3,1.43262757]
[1761632659755,1.80791759,4082.4,4082.3,0.2323]
[1761632659952,1.80791759,4082.4,4082.3,0.7667]
[1761632660148,1.80791759,4082.4,4082.3,1.64752757]
[1761632660343,1.80791759,4082.4,4082.3,0.7667]
[1761632661149,0.7509,4082.4,4082.3,0.7667]
[1761632671063,41.12212514,4082.6,4082.5,0.8971]
[1761632678872,41.12212514,4082.6,4082.5,0.7667]
[1761632679369,41.12212514,4082.6,4082.5,1.64752757]
[1761632679564,0.1367,4083.5,4083.0,0.1375]
[1761632679770,0.51383264,4083.4,4083.3,1.62762703]
[1761632679961,41.31383264,4083.4,4083.3,1.62762703]
[1761632680658,41.31622598,4083.4,4083.3,1.62762703]
[1761632681264,41.31622598,4083.4,4083.3,0.7468]
[1761632681965,0.7719,4083.2,4083.1,1.41422703]
[1761632682167,0.7719,4083.2,4083.1,1.62762703]
[1761632683272,0.7719,4083.2,4083.1,0.7468]
[1761632683473,0.7719,4083.2,4083.1,1.62762703]
[1761632684567,0.7719,4083.2,4083.1,0.7468]
[1761632686176,0.3334,4083.1,4083.0,0.88082703]
[1761632686374,0.3334,4083.1,4083.0,1.41422703]
[1761632686375,0.7719,4083.1,4083.0,1.41422703]
[1761632686672,0.7719,4083.1,4083.0,1.62762703]
[1761632687868,0.5432,4083.1,4083.0,1.76512703]
[1761632688177,0.3334,4084.0,4083.1,1.10216]
[1761632688475,0.3334,4084.4,4084.2,0.3146]
[1761632688672,0.4385,4084.5,4084.2,0.3146]
[1761632688673,40.8,4084.3,4084.2,0.528]
[1761632688866,40.8,4084.3,4084.2,0.7468]
[1761632689269,40.80251357,4084.3,4084.2,0.74930294]
[1761632690167,41.13591357,4084.3,4084.2,0.74930294]
[1761632693877,40.80251357,4084.3,4084.2,0.74930294]
[1761632694380,0.00251357,4084.3,4084.2,0.74930294]
[1761632695274,0.54571357,4084.3,4084.2,0.74930294]
[1761632695473,0.54571357,4084.3,4084.2,1.62867227]
[1761632696279,0.54571357,4084.3,4084.2,2.06942227]
[1761632697982,0.77441357,4084.3,4084.2,2.06942227]
[1761632698180,0.77441357,4084.3,4084.2,1.19005294]
[1761632698884,0.77441357,4084.3,4084.2,2.06942227]
[1761632699083,0.21231357,4084.3,4084.2,2.06942227]
[1761632699279,0.00251357,4084.3,4084.2,2.06942227]
[1761632699578,0.3334,4085.4,4085.3,0.44063]
[1761632699783,0.5703,4086.0,4085.9,0.7468]
[1761632700287,0.5703,4086.0,4085.9,1.18736]
[1761632700681,0.44149077,4086.0,4085.9,1.18736]
[1761632701383,0.00299077,4086.0,4085.9,0.7468]
[1761632701777,0.5432,4085.9,4085.8,0.65645089]
[1761632701978,0.7719,4085.7,4085.6,0.65645089]
[1761632702183,0.5432,4085.6,4085.5,0.65645089]
[1761632702382,0.3334,4085.4,4085.3,0.65645089]
[1761632702585,0.7719,4085.4,4085.3,0.65645089]
[1761632703288,0.7719,4085.4,4085.3,0.7468]
[1761632703489,0.2098,4085.4,4085.3,0.7468]
[1761632704190,0.7719,4085.4,4085.3,0.7468]
[1761632704680,0.7719,4085.4,4085.3,1.18743]
[1761632704987,0.7719,4085.4,4085.3,0.87500376]
[1761632705579,0.7719,4085.4,4085.3,1.19850376]
[1761632705886,1.40222318,4086.0,4085.3,1.19850376]
[1761632705887,0.5759,4086.0,4085.9,0.88956]
[1761632706181,0.7876,4086.0,4085.9,0.449]
[1761632706389,0.9141,4086.0,4085.9,0.7725]
[1761632706686,0.7876,4086.0,4085.9,0.7725]
[1761632706988,0.78959021,4086.0,4085.9,0.7725]
[1761632709287,0.00199021,4086.0,4085.9,0.7725]
[1761632709484,0.80079021,4086.0,4085.9,0.7725]
[1761632710388,0.93599021,4086.0,4085.9,0.2177]
[1761632710585,0.93599021,4086.0,4085.8,0.65580956]
[1761632710786,0.7988,4085.9,4085.8,0.65580956]
[1761632710986,0.7988,4085.9,4085.6,0.78449]
[1761632710987,0.7988,4085.9,4085.7,0.65580956]
[1761632711293,0.7988,4085.8,4085.7,0.65580956]
[1761632711784,0.7988,4085.8,4085.7,0.88540956]
[1761632712389,0.4618,4085.3,4085.1,0.87477527]
[1761632712594,0.7988,4085.2,4085.1,0.7923]
[1761632712893,0.7988,4085.2,4085.1,0.2296]
[1761632714094,0.7988,4085.2,4085.1,0.67025]
[1761632714296,0.7988,4085.2,4085.1,1.01415]
[1761632714895,0.7988,4085.2,4085.1,1.23295]
[1761632715990,0.7988,4085.2,4085.1,0.7923]
[1761632716199,0.7988,4085.2,4085.1,0.2296]
[1761632716391,0.7988,4085.2,4085.1,1.01415]
[1761632716590,0.7988,4085.2,4085.1,1.23295]
[1761632717992,0.5692,4085.5,4085.4,1.23292]
[1761632718193,0.7988,4085.5,4085.4,0.7923]
[1761632718695,41.734,4085.5,4085.4,0.7923]
[1761632719092,41.5988,4085.5,4085.4,1.23292]
[1761632720689,41.5988,4085.5,4085.4,2.10769527]
[1761632721396,41.2618,4085.5,4085.4,1.23292]
[1761632721590,41.5988,4085.5,4085.4,1.23292]
[1761632723094,41.5988,4085.5,4085.4,0.7923]
[1761632723397,41.5988,4085.5,4085.4,1.23292]
[1761632727495,0.2322,4085.5,4085.4,2.55197399]
[1761632728294,0.2322,4085.5,4085.4,1.23292]
[1761632728899,0.7988,4085.5,4085.4,1.23292]
[1761632729100,0.934,4085.5,4085.4,1.23292]
[1761632730698,0.13719021,4086.0,4085.9,1.01406]
[1761632730699,0.00199021,4086.0,4085.9,1.01406]
[1761632731003,0.57119021,4086.0,4085.9,2.50029241]
[1761632732099,0.80079021,4086.0,4085.9,2.5520768]
[1761632732293,0.93599021,4086.0,4085.9,2.5520768]
[1761632732796,0.57119021,4086.0,4085.9,2.5520768]
[1761632732996,0.23419021,4086.0,4085.9,1.23286]
[1761632733304,0.23419021,4086.0,4085.9,2.55190573]
[1761632736910,0.00199021,4086.0,4085.9,2.55190573]
[1761632737110,0.00199021,4086.0,4085.9,1.23286]
[1761632738210,0.00199021,4086.0,4085.9,0.7923]
[1761632738410,0.00199021,4086.0,4085.9,1.23286]
[1761632738611,0.23049021,4086.0,4085.9,1.23286]
[1761632739415,0.00199021,4086.0,4085.9,1.23286]
[1761632744113,0.55159021,4086.0,4085.9,1.23286]
[1761632744416,0.4528,4085.9,4085.6,1.31831799]
[1761632744619,0.4528,4085.9,4085.3,0.44062]
[1761632744620,0.7739,4085.6,4085.5,1.31831799]
[1761632744914,0.44912863,4085.9,4085.8,0.7846]
[1761632745116,0.44912863,4085.9,4085.8,2.05203241]
[1761632745619,0.77022863,4085.9,4085.8,2.05203241]
[1761632745822,0.77022863,4085.9,4085.8,1.70713241]
[1761632746119,0.77022863,4085.9,4085.8,1.49063241]
[1761632746418,0.77022863,4085.9,4085.8,1.83553241]
[1761632747817,0.77022863,4085.9,4085.8,1.05467541]
[1761632748920,0.77022863,4085.9,4085.8,1.62277541]
[1761632749120,0.77022863,4085.9,4085.8,2.06334541]
[1761632749320,0.77022863,4085.9,4085.8,1.83927541]
[1761632750422,0.77022863,4085.9,4085.8,2.27984541]
[1761632752112,0.2285,4085.9,4085.8,2.27984541]
[1761632752314,0.00199021,4086.0,4085.9,1.22516]
[1761632752515,0.00199021,4086.0,4085.9,2.54365471]
[1761632752716,0.00199021,4086.0,4085.9,1.22516]
[1761632761232,0.7739,4087.1,4087.0,0.7846]
[1761632761528,0.7739,4087.1,4087.0,1.83927541]
[1761632761828,41.5739,4087.1,4087.0,1.96597541]
[1761632762030,41.5739,4087.1,4087.0,1.83927541]
[1761632762233,0.7739,4086.8,4086.7,2.5979261]
[1761632762424,0.3211,4086.7,4086.6,1.32005069]
[1761632762630,0.7739,4086.7,4086.6,1.32005069]
[1761632762831,0.7739,4086.7,4086.6,2.10465069]
[1761632763034,0.2285,4086.7,4086.6,2.10465069]
[1761632763426,0.5496,4086.7,4086.6,2.10465069]
[1761632765134,0.4479,4087.0,4086.7,0.3277]
[1761632765432,0.7706,4087.0,4086.9,1.81047541]
[1761632767947,0.9007,4087.0,4086.9,1.59347541]
[1761632768138,0.9007,4087.0,4086.9,1.26577541]
[1761632768340,0.4388,4086.7,4086.5,2.3747261]
[1761632768637,0.7541,4086.6,4086.5,2.9050261]
[1761632769430,0.7541,4086.6,4086.5,1.32005069]
[1761632769632,0.7541,4086.6,4086.5,1.85035069]
[1761632770330,0.7541,4086.6,4086.5,0.5303]
[1761632770931,0.7541,4086.6,4086.5,0.7547]
[1761632771333,0.5689,4086.5,4086.3,2.3747261]
[1761632771634,0.7541,4086.4,4086.3,2.9050261]
[1761632771936,0.7541,4086.4,4086.3,1.80937541]
[1761632772231,0.5329,4086.6,4086.5,0.8804]
[1761632772432,0.5329,4086.9,4086.8,0.4393]
[1761632772633,0.5329,4086.9,4086.8,1.80937541]
[1761632774828,0.21934248,4087.1,4087.0,0.4393]
[1761632775031,0.21934248,4087.1,4087.0,0.7547]
[1761632775235,0.44054248,4087.1,4087.0,0.5303]
[1761632775436,0.75584248,4087.1,4087.0,0.5303]
[1761632775636,0.75584248,4087.1,4087.0,0.7547]
[1761632776041,0.75584248,4087.1,4087.0,0.2149]
[1761632776343,0.75584248,4087.1,4087.0,0.5303]
[1761632777041,0.75584248,4087.1,4087.0,0.7547]
[1761632779044,0.75584248,4087.1,4087.0,0.5303]
[1761632779233,0.7541,4086.9,4086.8,0.5303]
[1761632780045,0.7541,4086.9,4086.8,0.7547]
[1761632780547,0.7541,4086.9,4086.8,0.2149]
[1761632780839,0.4388,4086.7,4086.6,1.84949479]
[1761632781041,0.7541,4086.7,4086.6,0.5303]
[1761632781240,0.7541,4086.7,4086.6,2.07389479]
[1761632782341,0.7541,4086.7,4086.6,0.7547]
[1761632783651,40.8,4086.9,4086.8,0.4393]
[1761632783847,40.8,4086.9,4086.8,0.7547]
[1761632784152,41.1153,4086.9,4086.8,2.0753037]
[1761632784449,0.2176,4086.9,4086.8,2.0753037]
[1761632784946,0.53464248,4087.1,4087.0,0.8804]
[1761632785149,0.53464248,4087.1,4087.0,3.25567911]
[1761632788357,0.75584248,4087.1,4087.0,3.25567911]
[1761632788550,0.00174248,4087.1,4087.0,1.93507541]
[1761632788958,0.2212,4086.6,4086.5,0.2149]
[1761632789151,0.7541,4086.6,4086.5,0.565]
[1761632789355,0.2176,4086.6,4086.5,0.565]
[1761632789553,0.2176,4086.6,4086.5,0.8804]
[1761632789857,0.7541,4086.6,4086.5,0.7547]
[1761632795266,0.129,4086.5,4086.3,1.32063863]
[1761632795468,0.129,4086.5,4086.0,0.3336]
[1761632795469,0.7452,4086.3,4086.2,0.7741]
[1761632795670,0.7452,4086.9,4086.8,0.5443]
[1761632796565,0.3181,4086.8,4086.6,1.42475369]
[1761632796767,0.4271,4086.7,4086.6,1.42475369]
[1761632797065,0.7452,4086.7,4086.6,1.42475369]
[1761632797867,0.7452,4086.7,4086.6,0.7741]
[1761632799470,0.2125,4086.7,4086.6,1.82877541]
[1761632799773,0.5306,4086.7,4086.6,1.82877541]
[1761632800162,0.5306,4086.7,4086.6,0.7741]
[1761632802069,0.5306,4087.0,4086.9,0.7741]
[1761632802269,0.2125,4087.0,4086.9,0.7741]
[1761632802574,0.5306,4087.0,4086.9,2.09392376]
[1761632802974,0.00174248,4087.1,4086.9,2.09392376]
[1761632803177,0.53234248,4087.1,4087.0,0.9114]
[1761632803471,0.7452,4086.9,4086.8,0.5443]
[1761632803668,41.5452,4086.9,4086.8,0.5443]
[1761632803863,41.5452,4086.9,4086.4,0.4405]
[1761632803864,0.8742,4086.5,4086.4,0.4405]
[1761632804271,0.8742,4086.5,4086.4,0.2107]
[1761632804470,0.8742,4086.5,4086.4,0.5443]
[1761632804672,0.8742,4086.5,4086.4,0.7741]
[1761632805578,0.7452,4086.5,4086.4,0.7741]
[1761632807069,0.3181,4086.8,4086.5,0.4709]
[1761632807376,0.7452,4086.8,4086.7,0.7741]
[1761632807583,0.7452,4086.8,4086.7,0.2107]
[1761632807771,0.7452,4086.8,4086.6,0.87971725]
[1761632807772,0.3181,4086.7,4086.6,0.87971725]
[1761632807975,0.7452,4086.7,4086.6,0.87971725]
[1761632809482,0.7452,4086.7,4086.6,1.09041725]
[1761632810682,0.7452,4086.7,4086.6,1.42401725]
[1761632813188,0.7452,4086.7,4086.6,1.09041725]
[1761632813387,0.7452,4086.7,4086.6,0.87971725]
[1761632813582,0.7452,4086.6,4086.5,0.87971725]
[1761632814190,0.8742,4086.5,4086.4,0.87971725]
[1761632816192,0.3181,4086.4,4086.2,0.3336]
[1761632816696,0.7452,4086.3,4086.2,0.7741]
[1761632816888,40.8,4086.9,4086.2,0.7741]
[1761632817191,40.8,4086.9,4086.0,1.45712376]
[1761632817192,0.4271,4086.8,4086.7,0.5443]
[1761632817688,0.7452,4086.8,4086.7,0.5443]
[1761632818596,0.7452,4086.8,4086.7,0.7741]
[1761632824599,0.00174248,4087.1,4087.0,0.131]
[1761632824905,0.76164248,4087.1,4087.0,0.7635]
[1761632825900,0.5327,4086.8,4086.7,0.4431]
[1761632826101,0.00174248,4087.1,4087.0,0.5741]
[1761632826402,0.00174248,4087.1,4087.0,0.8897]
[1761632826700,40.80174248,4087.1,4087.0,0.8897]
[1761632827502,41.14504248,4087.1,4087.0,0.7587]
[1761632831300,41.14504248,4087.1,4087.0,0.5382]
[1761632831496,41.14504248,4087.1,4087.0,0.2226]
[1761632831805,41.14504248,4087.1,4087.0,0.5382]
[1761632832006,0.7812,4086.8,4086.7,1.86432376]
[1761632832199,0.7812,4086.8,4086.7,0.5445]
[1761632833005,0.1264,4086.5,4086.4,1.54872376]
[1761632833202,0.9076,4086.5,4086.4,0.5445]
[1761632833499,0.2131,4087.0,4086.9,0.2289]
[1761632833705,0.7812,4087.0,4086.9,0.7645]
[1761632833895,0.9076,4087.0,4086.9,0.5445]
[1761632834095,0.9076,4087.0,4086.9,0.2289]
[1761632834300,0.4379,4086.8,4086.7,1.42408519]
[1761632834500,0.7812,4086.8,4086.7,1.42408519]
[1761632834702,0.7812,4086.8,4086.7,0.87958519]
[1761632836309,0.7812,4086.6,4086.5,1.10848519]
[1761632836603,0.3433,4086.6,4086.5,1.64408519]
[1761632836806,0.7812,4086.7,4086.6,0.7645]
[1761632837008,0.7812,4086.7,4086.6,0.2289]
[1761632837716,0.7812,4086.7,4086.6,0.5445]
[1761632838510,0.7812,4086.7,4086.6,0.7645]
[1761632844116,0.9076,4086.5,4086.3,0.87958519]
[1761632844307,0.7812,4086.4,4086.1,0.3156]
[1761632844510,0.1264,4086.5,4086.1,0.3156]
[1761632844511,0.7812,4086.3,4086.2,0.7645]
[1761632845614,41.5812,4086.3,4086.2,0.7645]
[1761632848019,0.4379,4086.1,4086.0,1.10848519]
[1761632848320,0.7812,4086.1,4086.0,1.78118519]
[1761632848707,0.2131,4086.1,4086.0,1.78118519]
[1761632849019,0.5564,4086.2,4086.1,0.7645]
[1761632849415,40.8,4086.3,4086.2,0.3156]
[1761632849722,41.1433,4086.3,4086.2,0.7645]
[1761632850219,0.3433,4086.6,4086.2,0.7645]
[1761632850522,0.5564,4086.6,4086.5,0.7645]
[1761632850717,41.3564,4086.6,4086.5,0.7645]
[1761632852119,0.7812,4086.4,4086.3,0.87896562]
[1761632852320,0.3433,4086.3,4086.2,1.42346562]
[1761632852517,0.7812,4086.3,4086.2,1.42346562]
[1761632852714,0.7812,4086.3,4086.2,1.10786562]